Cogmind - Beta 16 @@@ ROGUE MODE // 2025.10.28 @ 13:53:59 Player: WetterLettuce Result: Destroyed by X-87 Electro with Compact HERF Cannon Performance ------------- Evolutions (8) 4000 Regions Visited (15) 3000 Robots Destroyed (89) 445 Value Destroyed (3523) 3523 Prototype IDs (13) 260 Alien Tech Used (6) 1200 Bonus (3937) 3937 TOTAL SCORE: 16365 Bonus ------- High Alert Combat Kills 90 Follower Combat Kills 47 Registered with UFD 300 Used Core Reset Matrix 3000 Scanned by Researcher 500 Cogmind --------- Core Integrity 0/1450 Matter 11/300 Energy 99/100 System Corruption 12% Temperature Cool (0) Movement Core (50) Location -2/Quarantine Parts ------- > --- POWER (2) -------- (None) > --- PROPULSION (5) --- (None) > --- UTILITY (13) ----- Advanced Signal Interpreter Advanced Salvage Targeting Computer Advanced Melee Analysis Suite Advanced Melee Analysis Suite Advanced Target Analyzer Experimental Target Analyzer Experimental Target Analyzer Experimental Target Analyzer Armor Integrity Analyzer Hacking Suite > --- WEAPON (3) ------- (None) > --- INVENTORY (5) ---- Dimensional Node Initializer Subatomic Replicator Enhanced Hardcell Cannon Peak State ------------ > --- POWER ------------ (None) > --- PROPULSION ------- Advanced Heavy Siege Treads Impulse Thruster Array > --- UTILITY ---------- Advanced Signal Interpreter Advanced Salvage Targeting Computer Advanced Melee Analysis Suite Advanced Melee Analysis Suite Advanced Melee Analysis Suite Advanced Melee Analysis Suite Advanced Target Analyzer Experimental Target Analyzer Experimental Target Analyzer Experimental Target Analyzer Armor Integrity Analyzer Hacking Suite > --- WEAPON ----------- Heavy Gauss Cannon Sigix Broadsword > --- INVENTORY -------- Dimensional Node Initializer Transdimensional Reconstructor Subatomic Replicator [Rating: 145] Favorites ----------- Power Light Nuclear Core Engine Makeshift Power Source Power Core Light Nuclear Core Reactor Light Antimatter Reactor Propulsion Surge Thruster Treads Advanced Medium Treads Leg Armored Leg Hover Unit Gyrokinetic Inverter Flight Unit Surge Thruster Utility System Shield Device Advanced Terrain Scanner Storage Medium Storage Unit Processor Improved Signal Interpreter Hackware System Shield Protection Improved Medium Armor Plating Weapon Spear Energy Gun Dispersion Rifle Energy Cannon Heavy Ion Cannon Ballistic Gun Light Assault Rifle Ballistic Cannon Heavy Gauss Cannon Launcher Improved Grenade Launcher Slashing Weapon Makeshift Sword Piercing Weapon Spear Special Melee Weapon Advanced Datajack Build | -11 -10 -10 -9 -8 -7 -7 -7 -7 -5 -5 -5 -4 -3 -2 -2 ------- Run | Yrd Mat Min Mat Mat Fac Sto Rec Scr Fac Upp Upp Fac Res Res Qua Slots Evolved 16 | . . . 2 2 2 . . . 4 . . 2 2 2 . Power 1 | . . . . . . . . . . . . . 1 . . Propulsion 3 | . . . . 1 1 . . . 1 . . . . . . Utility 11 | . . . 1 1 1 . . . 3 . . 2 1 2 . Weapon 1 | . . . 1 . . . . . . . . . . . . Parts Attached 139 | 6 . 3 3 25 9 2 . 6 28 4 1 27 11 3 11 Power 11 | 1 . 1 . 4 1 . . 1 2 . . 1 . . . Engine 5 | 1 . 1 . 1 1 . . 1 . . . . . . . Core 5 | . . . . 3 . . . . 2 . . . . . . Reactor 1 | . . . . . . . . . . . . 1 . . . Propulsion 47 | 2 . . 2 6 2 . . 3 12 1 1 9 5 1 3 Treads 22 | 2 . . . 5 . . . . 4 . . 8 2 . 1 Leg 9 | . . . . . . . . 2 6 . . . 1 . . Wheel . | . . . . . . . . . . . . . . . . Hover 4 | . . . . . . . . . 2 . . . 1 . 1 Flight 12 | . . . 2 1 2 . . 1 . 1 1 1 1 1 1 Utility 50 | 1 . . . 7 3 1 . 2 11 1 . 12 6 2 4 Device 16 | . . . . 2 2 . . . 5 . . 5 1 1 . Storage 2 | 1 . . . . . . . 1 . . . . . . . Processor 22 | . . . . 1 1 1 . 1 4 1 . 3 5 1 4 Hackware 6 | . . . . 1 . . . . 2 . . 3 . . . Protection 4 | . . . . 3 . . . . . . . 1 . . . Artifact . | . . . . . . . . . . . . . . . . Weapon 31 | 2 . 2 1 8 3 1 . . 3 2 . 5 . . 4 Energy Gun 7 | 2 . . . 2 1 . . . 1 . . 1 . . . Energy Cannon 3 | . . . . 2 . . . . . . . 1 . . . Ballistic Gun 10 | . . 2 1 4 1 . . . 1 . . 1 . . . Ballistic Cannon 3 | . . . . . 1 . . . . . . . . . 2 Launcher 1 | . . . . . . . . . . 1 . . . . . Special Weapon . | . . . . . . . . . . . . . . . . Impact Weapon . | . . . . . . . . . . . . . . . . Slashing Weapon 4 | . . . . . . . . . 1 1 . 1 . . 1 Piercing Weapon 2 | . . . . . . 1 . . . . . 1 . . . Special Melee Weapon 1 | . . . . . . . . . . . . . . . 1 Unidentified Prototypes 8 | . . . . . 2 . . . 1 . . . . . 5 Parts Lost 77 | . . 1 4 6 1 5 . . 16 4 2 21 7 . 10 Power 6 | . . 1 1 1 . 1 . . 1 . . 1 . . . Propulsion 35 | . . . 2 1 . 3 . . 8 2 2 9 5 . 3 Utility 20 | . . . . 1 1 1 . . 3 1 . 8 1 . 4 Weapon 16 | . . . 1 3 . . . . 4 1 . 3 1 . 3 Highest Loss Streak 13 | . . 1 4 2 1 4 . . 13 4 2 7 4 . 3 To Critical Strikes 3 | . . . . . . . . . 1 . . 2 . . . Average Backups 6 | . 1 3 6 7 4 4 5 6 8 4 4 4 4 5 4 Power . | . 1 . . . . 1 1 1 . . . . . . . Propulsion . | . . . 2 5 . . . . . . . . . . . Utility 2 | . . . . . 1 . . 1 6 3 3 3 3 3 1 Weapon 1 | . . 3 3 2 1 2 3 2 1 . . . . 1 . Tool/Special . | . . . . . . . . . . . . . . . . Unused Backups 15 | . . . . 2 2 1 . . 5 . . . 1 . 4 Power . | . . . . . . . . . . . . . . . . Propulsion 2 | . . . . 1 1 . . . . . . . . . . Utility 9 | . . . . . 1 1 . . 5 . . . . . 2 Weapon 1 | . . . . 1 . . . . . . . . . . . Tool/Special 3 | . . . . . . . . . . . . . 1 . 2 Average Slot Usage (%) 78 | . 85 84 69 88 88 81 53 74 90 66 64 73 43 44 59 Engine 2 | . 14 13 7 2 5 5 . 5 . . . . . . . Core 1 | . . . . 6 1 . . . 4 . . . . . . Treads 9 | . 28 28 16 22 1 . . . 4 5 5 16 5 4 3 Leg 6 | . . . . . . . . 8 18 8 5 . . . . Flight 5 | . . . 5 . 28 26 7 14 1 . 5 . 1 1 3 Device 7 | . . . . 6 12 10 7 7 16 . . 5 . . . Storage 3 | . 14 14 11 9 . . . 2 4 . . . . . . Processor 17 | . . . . 8 15 19 23 20 13 29 29 20 21 34 43 Hackware 7 | . . . . 4 7 7 7 7 7 15 11 14 6 4 4 Energy Gun 2 | . 28 6 . 5 7 6 . . . . . 2 . . . Energy Cannon 1 | . . . . 8 . . . . . . . 1 . . . Ballistic Gun 4 | . . 21 29 11 6 . . . 1 . . 1 . . . Slashing Weapon 1 | . . . . . . . . . 4 . 5 1 . . . Piercing Weapon 2 | . . . . . . . 7 7 4 . . 1 3 . . Peak Build Rating 145 | 6 6 6 8 33 44 40 20 37 75 68 61 111 104 98 145 Average Rating 50 | 4 6 5 7 24 35 32 20 32 63 61 55 77 67 85 108 On Entrance 34 | . 6 6 6 8 29 35 20 20 37 66 55 53 39 80 98 Avg Prop Armor Cover (%) 25 | . . . . 9 . . . 11 14 42 41 36 39 40 33 Naked Turns . | . . . . . . . . . . . . . . . . Heaviest Build 49 | 14 14 14 11 30 14 14 3 17 44 6 3 49 3 . 12 Greatest Support 150 | 40 40 40 40 64 14 14 3 26 72 11 7 150 8 3 16 Greatest Overweight (x) 3 | 3 . . 2 . . . . . 3 . . 2 . . 3 Average Overweight (x) . | . . . . . . . . . . . . . . . . Largest Inventory Capacity 10 | 8 8 8 8 8 8 5 5 10 10 5 5 5 5 5 5 Average Capacity 7 | 7 8 8 8 8 5 5 5 6 9 5 5 5 5 5 5 Most Carried 10 | 1 1 5 8 8 7 5 5 10 10 5 4 5 5 5 5 Average Carried 6 | . 1 3 6 7 4 4 5 6 8 4 4 4 4 5 4 Final Capacity 10 | 8 8 8 8 8 5 5 5 10 5 5 5 5 5 5 5 Final Carried 10 | 1 1 4 8 8 5 5 5 10 5 4 4 4 5 5 3 Class Distribution -------------------- 31% | Mutant 18% | Gladiator 17% | Hacker-Mutant 10% | Sprinter 7% | Scavenger-Gunner 6% | Hacker-Gladiator 3% | Gunner Dominant Class ---------------- Mutant | -10/Materials Mutant | -10/Mines Gunner | -9/Materials Scavenger-Gunner | -8/Materials Sprinter | -7/Factory Sprinter | -7/Storage Mutant | -7/Recycling Mutant | -7/Scraptown Gladiator | -5/Factory Hacker-Mutant | -5/Upper Caves Hacker-Mutant | -5/Upper Caves Hacker-Mutant | -4/Factory Mutant | -3/Research Mutant | -2/Research Mutant | -2/Quarantine Resources | -11 -10 -10 -9 -8 -7 -7 -7 -7 -5 -5 -5 -4 -3 -2 -2 ----------- Run | Yrd Mat Min Mat Mat Fac Sto Rec Scr Fac Upp Upp Fac Res Res Qua Matter Collected 1817 | 184 . 122 60 319 140 81 5 60 220 67 61 381 115 . 2 Remotely . | . . . . . . . . . . . . . . . . Salvage Created 3597 | . . 129 82 1018 300 249 . . 867 119 . 443 315 . 75 Parts 202 | . . 13 9 50 14 13 . . 45 3 . 27 25 . 3 Haulers Intercepted 1 | . . . . . . 1 . . . . . . . . . Recyclers Shooed . | . . . . . . . . . . . . . . . . Parts Field Recycled . | . . . . . . . . . . . . . . . . Retrieved Matter . | . . . . . . . . . . . . . . . . Parts Self-Destructed 4 | . . . . . . . . . . 4 . . . . . Prevented . | . . . . . . . . . . . . . . . . Parts Restored . | . . . . . . . . . . . . . . . . Kills | -11 -10 -10 -9 -8 -7 -7 -7 -7 -5 -5 -5 -4 -3 -2 -2 ------- Run | Yrd Mat Min Mat Mat Fac Sto Rec Scr Fac Upp Upp Fac Res Res Qua Combat Hostiles Destroyed 75 | . . 8 6 24 4 2 . . 16 3 . 8 4 . . Melee 24 | . . . . . . . . . 16 . . 4 4 . . Guns 27 | . . 6 6 7 4 1 . . . . . 3 . . . Cannons 17 | . . . . 16 . 1 . . . . . . . . . AOE 5 | . . 2 . . . . . . . 3 . . . . . Classes Destroyed 13 | . . 1 . 5 1 3 . . 1 . . 1 . . 1 Worker 1 | . . . . . . 1 . . . . . . . . . Builder 3 | . . . . 2 . . . . . . . 1 . . . Hauler 1 | . . . . . . 1 . . . . . . . . . Mechanic 1 | . . . . . . 1 . . . . . . . . . Operator 4 | . . . . . 1 1 . . . . . 1 1 . . Watcher 3 | . . . . 1 1 1 . . . . . . . . . Swarmer 29 | . . 8 6 8 . . . . 4 . . 3 . . . Grunt 24 | . . . . 13 4 1 . . 4 1 . . 1 . . Brawler 2 | . . . . 1 . . . . . 1 . . . . . Researcher 1 | . . . . . . . . . . . . . . . 1 Sentry 10 | . . . . 2 . 1 . . 3 1 . 2 1 . . Hunter 1 | . . . . . . . . . . . . 1 . . . Programmer 9 | . . . . . . . . . 5 . . 2 2 . . Best Kill Streak 9 | . . 3 5 9 4 5 . . 4 3 . 4 3 . 1 Combat Bots Only 8 | . . 3 5 8 4 1 . . 4 3 . 2 2 . . Max Kills in Single Turn 2 | . . 2 1 2 1 2 . . 1 1 . 1 1 . 1 Gunslinging . | . . . . . . . . . . . . . . . . Exploded 2 | . . 2 . . . . . . . 1 . . . . . Melee 1 | . . . . . . . . . 1 . . 1 1 . . Uniques/NPCs Destroyed . | . . . . . . . . . . . . . . . . Combat | -11 -10 -10 -9 -8 -7 -7 -7 -7 -5 -5 -5 -4 -3 -2 -2 -------- Run | Yrd Mat Min Mat Mat Fac Sto Rec Scr Fac Upp Upp Fac Res Res Qua Hostile Shots Fired 1234 | . . 77 34 150 46 73 . . 187 34 7 367 102 . 157 Missed 429 | . . 22 7 41 29 45 . . 54 8 3 128 38 . 54 Hits 805 | . . 55 27 109 17 28 . . 133 26 4 239 64 . 103 Melee 2 | . . . . . . . . . . 2 . . . . . Projectile 803 | . . 55 27 109 17 28 . . 133 24 4 239 64 . 103 AOE 1 | . . . . . . . . . 1 . . . . . . Critical Strikes 37 | . . . . 3 1 . . . 11 3 . 12 7 . . Part Disruptions 1 | . . . . . . . . . 1 . . . . . . Damage Taken 14787 | . . 427 247 1661 246 276 . . 2594 641 83 4098 1662 . 2852 Core 3799 | . . 36 34 363 11 54 . . 612 108 . 888 501 . 1192 Absorbed by Shields . | . . . . . . . . . . . . . . . . Ignored by Resistances 2 | . . . . 2 . . . . . . . . . . . Regen/Repaired (Parts) 34 | . . . . . . . . . . . . . . . 34 Core Remaining (%) 63 | 100 . 85 91 34 . . . 90 . . 28 22 61 . . Volleys Fired 198 | . . 25 16 70 21 19 . . 1 7 . 26 . . 13 Largest 3 | . . 2 3 3 2 2 . . 1 1 . 3 . . 1 Hottest 209 | . . 90 60 195 88 95 . . 60 36 . 209 . . 58 Shots Fired 413 | . . 50 40 186 37 27 . . 1 7 . 53 . . 12 Gun 297 | . . 50 40 103 37 19 . . 1 . . 47 . . . Cannon 109 | . . . . 83 . 8 . . . . . 6 . . 12 Launcher 7 | . . . . . . . . . . 7 . . . . . Special . | . . . . . . . . . . . . . . . . Kinetic 185 | . . 34 40 53 16 8 . . . . . 22 . . 12 Thermal 169 | . . 8 . 133 3 . . . . . . 25 . . . Explosive 7 | . . . . . . . . . . 7 . . . . . Electromagnetic 52 | . . 8 . . 18 19 . . 1 . . 6 . . . Robot Hit Streak 16 | . . 6 4 16 15 15 . . 3 10 . 6 . . 3 Robot Miss Streak 9 | . . 9 8 4 2 1 . . . . . 7 . . 4 Penetration Max 1 | . . . . . . . . . . . . 1 . . . Secondary Targets 2 | . . . 1 . . . . . . . . 1 . . . Max Gunslinging Chain 1 | . . . 1 . . . . . . . . 1 . . . Shots Hit Robots 324 | . . 18 15 118 27 23 . . 53 7 . 40 15 . 8 Core Hits 165 | . . 10 8 47 14 11 . . 31 18 . 17 7 . 2 Critical Kills 1 | . . . . . . . . . . . . 1 . . . Critical Parts Destroyed 4 | . . . . 1 . . . . . . . 3 . . . Critical Strikes 18 | . . . . 3 . . . . 5 . . 6 4 . . Burn 2 | . . . . 2 . . . . . . . . . . . Destroy 5 | . . . . 1 . . . . . . . 4 . . . Sever 3 | . . . . . . . . . 2 . . 1 . . . Impale 8 | . . . . . . . . . 3 . . 1 4 . . Melee Attacks 130 | . . . . . . 2 . . 73 . . 29 20 . 6 Impact . | . . . . . . . . . . . . . . . . Slashing 59 | . . . . . . . . . 39 . . 14 . . 6 Piercing 71 | . . . . . . 2 . . 34 . . 15 20 . . Sneak Attacks 2 | . . . . . . . . . . . . 1 1 . . Combat Hostiles . | . . . . . . . . . . . . . . . . Follow-up Attacks 11 | . . . . . . . . . 11 . . . . . . Damage Inflicted 9183 | . . 243 115 2533 526 623 . . 1682 865 . 1250 711 . 635 Guns 2455 | . . 183 115 875 526 339 . . 28 . . 389 . . . Cannons 2121 | . . . . 1654 . 217 . . . . . 160 . . 90 Explosions 992 | . . 60 . . . 67 . . . 865 . . . . . Melee 3608 | . . . . . . . . . 1654 . . 701 711 . 542 Ramming 7 | . . . . 4 . . . . . . . . . . 3 Kinetic 1010 | . . 125 115 285 122 217 . . . . . 56 . . 90 Thermal 2756 | . . 84 . 2244 28 67 . . . . . 333 . . . Explosive 865 | . . . . . . . . . . 865 . . . . . Electromagnetic 937 | . . 34 . . 376 339 . . 28 . . 160 . . . Impact . | . . . . . . . . . . . . . . . . Slashing 1705 | . . . . . . . . . 830 . . 333 . . 542 Piercing 1903 | . . . . . . . . . 824 . . 368 711 . . Highest Corruption 11 | . . . . . . . . . 3 3 3 5 6 . 11 Average Corruption 2 | . . . . . . . . . 1 3 3 1 4 . 6 Corruption Purged . | . . . . . . . . . . . . . . . . Corruption Blocked . | . . . . . . . . . . . . . . . . Effects 23 | . . . . . . . . . 7 4 . 5 2 . 5 Message Errors 9 | . . . . . . . . . 3 1 . 3 . . 2 Matter Fused 9 | . . . . . . . . . 3 3 . 1 1 . 1 Energy Discharges 1 | . . . . . . . . . . . . . 1 . . Parts Rejected 1 | . . . . . . . . . . . . 1 . . . Data Loss (minor) 1 | . . . . . . . . . 1 . . . . . . Alerts 1 | . . . . . . . . . . . . . . . 1 Weapon Failures 1 | . . . . . . . . . . . . . . . 1 Overload Shots . | . . . . . . . . . . . . . . . . Overflow Damage 333 | . . 15 . 103 . 33 . . 8 18 . 28 30 . 98 Projectiles 103 | . . . . 103 . . . . . . . . . . . Explosions 66 | . . 15 . . . 33 . . . 18 . . . . . Melee 164 | . . . . . . . . . 8 . . 28 30 . 98 Knockbacks 1 | . . . . . . . . . . . . . . . 1 Impact . | . . . . . . . . . . . . . . . . Kinetic 1 | . . . . . . . . . . . . . . . 1 Secondary . | . . . . . . . . . . . . . . . . Self-Inflicted Damage 280 | . . . . 184 . 39 . . . 56 . . . . 1 Shots 4 | . . . . 2 . 1 . . . 1 . . . . . Rammed 3 | . . . . 1 . . . . . . . . . . 2 Targets Rammed 3 | . . . . 1 . . . . . . . . . . 2 Kicked . | . . . . . . . . . . . . . . . . Crushed . | . . . . . . . . . . . . . . . . Highest Temperature 632 | . . 240 28 632 62 9 . . 25 14 . 398 . . . Average Temperature 163 | . . 122 12 168 28 4 . . 13 14 . 227 . . . Received Heat Transfer 2223 | . . . 18 657 144 75 . . 610 243 18 256 202 . . Effects 17 | . . . . 15 . . . . . . . 2 . . . Shutdowns 4 | . . . . 2 . . . . . . . 2 . . . Energy Bleed 3 | . . . . 3 . . . . . . . . . . . Interference 2 | . . . . 2 . . . . . . . . . . . Short Circuit 2 | . . . . 2 . . . . . . . . . . . Damage (major) 5 | . . . . 5 . . . . . . . . . . . Damage (core) 1 | . . . . 1 . . . . . . . . . . . Siege Activations . | . . . . . . . . . . . . . . . . Martial Activations . | . . . . . . . . . . . . . . . . Shielding Activations . | . . . . . . . . . . . . . . . . Robots Disrupted . | . . . . . . . . . . . . . . . . Combat Hostiles . | . . . . . . . . . . . . . . . . Robots Corrupted 1 | . . . . . . . . . . . . 1 . . . Combat Hostiles 1 | . . . . . . . . . . . . 1 . . . Parts Fried 9 | . . . . . 3 4 . . . . . 2 . . . Impact Corruptions . | . . . . . . . . . . . . . . . . Robots Melted 1 | . . . . 1 . . . . . . . . . . . Combat Hostiles 1 | . . . . 1 . . . . . . . . . . . Parts Melted 9 | . . 1 . 7 1 . . . . . . . . . . Heat Transferred 4542 | . . 174 . 3737 74 150 . . . . . 407 . . . Parts Sabotaged . | . . . . . . . . . . . . . . . . Parts Stolen . | . . . . . . . . . . . . . . . . Parts Stripped . | . . . . . . . . . . . . . . . . Power Chain Reactions 2 | . . 1 . . . 1 . . . . . . . . . Alert | -11 -10 -10 -9 -8 -7 -7 -7 -7 -5 -5 -5 -4 -3 -2 -2 ------- Run | Yrd Mat Min Mat Mat Fac Sto Rec Scr Fac Upp Upp Fac Res Res Qua Maximum Alert Level 2 | . . . . 2 1 1 . . . . . . . . . Low Security (%) 88 | 100 100 100 100 52 31 55 100 . 100 . . 100 100 100 100 Level 1 5 | . . . . 11 68 44 . . . . . . . . . Level 2 5 | . . . . 36 . . . . . . . . . . . Level 3 . | . . . . . . . . . . . . . . . . Level 4 . | . . . . . . . . . . . . . . . . Level 5 . | . . . . . . . . . . . . . . . . High Security . | . . . . . . . . . . . . . . . . Max Security . | . . . . . . . . . . . . . . . . Peak Influence 496 | . 11 130 196 496 251 223 90 . 142 . . 187 147 82 50 Initial 216 | . . . 23 78 216 102 76 . . . . 18 43 82 34 Average 86 | . . 89 68 240 211 176 66 . 34 . . 46 82 72 15 Influence Increases 3392 | . 11 200 296 800 120 206 26 . 637 105 . 575 294 . 122 Destroy 0b10 Robot/C 1580 | . . 160 180 480 80 40 . . 320 60 . 160 80 . 20 Destroy 0b10 Robot/NC 65 | . . . . 15 10 25 . . . . . 10 5 . . Destroy Leader 318 | . . 20 40 82 12 14 . . 80 . . 50 20 . . Allied During Kill 5 | . . . 5 . . . . . . . . . . . . Successful Hack 172 | . 11 . 10 13 . 61 26 . 27 . . . 24 . . Disable Machine 195 | . . 15 . 75 . 30 . . . . . 15 . . 60 Anti-Garrison Action 150 | . . . . . . . . . . . . 150 . . . Destroy Structure 82 | . . 5 1 45 3 6 . . . . . 10 . . 12 Partial Spotted 150 | . . . . . 15 30 . . 60 . . . 45 . . Lose Combat Pursuer 675 | . . . 60 90 . . . . 150 45 . 180 120 . 30 Influence Decreases 3392 | . 11 140 170 510 370 234 192 32 495 183 33 522 231 85 184 Entered New Map 896 | . . . 37 108 260 124 122 32 . 53 13 13 41 65 28 Time Decay 1698 | . 11 130 73 342 100 60 70 . 242 90 . 339 120 20 101 Lost Part 685 | . . 10 40 60 10 50 . . 160 40 20 170 70 . 55 Lost Ally 20 | . . . 20 . . . . . . . . . . . . Purge Threat 93 | . . . . . . . . . 93 . . . . . . Squads Dispatched 22 | . 1 . . 2 1 1 . . 5 . . 5 3 . 4 Investigation . | . . . . . . . . . . . . . . . . Extermination 6 | . . . . . . . . . 3 . . 2 . . 1 Reinforcement 12 | . 1 . . 2 1 1 . . 2 . . 1 1 . 3 Assault 4 | . . . . . . . . . . . . 2 2 . . Garrison . | . . . . . . . . . . . . . . . . Intercept . | . . . . . . . . . . . . . . . . Searches Triggered . | . . . . . . . . . . . . . . . . Construction Impeded 1 | . . . . 1 . . . . . . . . . . . Haulers Reinforced 1 | . . . . . . 1 . . . . . . . . . Active Scanning Responses . | . . . . . . . . . . . . . . . . Cargo Convoy Interrupts . | . . . . . . . . . . . . . . . . Stealth | -11 -10 -10 -9 -8 -7 -7 -7 -7 -5 -5 -5 -4 -3 -2 -2 --------- Run | Yrd Mat Min Mat Mat Fac Sto Rec Scr Fac Upp Upp Fac Res Res Qua Distress Signals 9 | . 1 . . 4 . 1 . . . . . 1 1 . 1 Communications Jammed . | . . . . . . . . . . . . . . . . Distress Signals . | . . . . . . . . . . . . . . . . Times Spotted 209 | . . 9 13 37 13 8 . . 37 9 5 33 23 . 22 Peak Tracking Total 12 | . . 3 8 7 5 4 . . 7 9 5 12 11 . 9 Tactical Retreats 19 | . . . 3 4 . . . . 3 1 . 4 2 . 2 Traps | -11 -10 -10 -9 -8 -7 -7 -7 -7 -5 -5 -5 -4 -3 -2 -2 ------- Run | Yrd Mat Min Mat Mat Fac Sto Rec Scr Fac Upp Upp Fac Res Res Qua Traps Triggered 7 | . . . . . . . . . . . . 3 . . 4 Indirectly . | . . . . . . . . . . . . . . . . Trap Hack Attempts . | . . . . . . . . . . . . . . . . Triggered . | . . . . . . . . . . . . . . . . Disarmed . | . . . . . . . . . . . . . . . . Reprogrammed . | . . . . . . . . . . . . . . . . Reused . | . . . . . . . . . . . . . . . . Traps Extracted . | . . . . . . . . . . . . . . . . Installed . | . . . . . . . . . . . . . . . . Triggered . | . . . . . . . . . . . . . . . . Machines | -11 -10 -10 -9 -8 -7 -7 -7 -7 -5 -5 -5 -4 -3 -2 -2 ---------- Run | Yrd Mat Min Mat Mat Fac Sto Rec Scr Fac Upp Upp Fac Res Res Qua Machines Disabled 14 | . . 1 . 5 . 2 . . . . . 2 . . 4 Max in Single Turn 2 | . . 1 . 2 . 1 . . . . . 1 . . 1 Garrison Access 2 | . . . . . . . . . . . . 1 1 . . Machines Repaired . | . . . . . . . . . . . . . . . . Machines Dismantled . | . . . . . . . . . . . . . . . . Machines Sabotaged . | . . . . . . . . . . . . . . . . Overloaded Fab Kills . | . . . . . . . . . . . . . . . . Hacking | -11 -10 -10 -9 -8 -7 -7 -7 -7 -5 -5 -5 -4 -3 -2 -2 --------- Run | Yrd Mat Min Mat Mat Fac Sto Rec Scr Fac Upp Upp Fac Res Res Qua Machines Accessed 53 | . 1 . 3 3 5 7 10 1 11 . . 4 3 . 5 Terminals 33 | . 1 . 2 3 2 7 5 . 5 . . 3 . . 5 Fabricators 4 | . . . . . 1 . . . 2 . . . 1 . . Repair Stations . | . . . . . . . . . . . . . . . . Recycling Units 10 | . . . 1 . 2 . 5 . 2 . . . . . . Scanalyzers 5 | . . . . . . . . . 2 . . 1 2 . . Garrison Access . | . . . . . . . . . . . . . . . . Total Hacks 144 | . 3 . 13 7 10 23 31 4 30 . . 11 5 . 7 Successful 69 | . 2 . 6 4 . 10 14 4 16 . . 7 2 . 4 Failed 74 | . 1 . 7 3 10 13 17 . 13 . . 4 3 . 3 Catastrophic 14 | . . . . 1 4 1 4 . 2 . . . . . 2 Database Lockouts 1 | . . . . . . . . . 1 . . . . . . Manual 79 | . 3 . 8 5 7 11 17 . 19 . . 4 2 . 3 Terminals 94 | . 3 . 10 7 6 23 15 . 15 . . 8 . . 7 Fabricators 7 | . . . . . 1 . . . 4 . . . 2 . . Repair Stations . | . . . . . . . . . . . . . . . . Recycling Units 29 | . . . 3 . 3 . 16 . 7 . . . . . . Scanalyzers 10 | . . . . . . . . . 4 . . 3 3 . . Garrison Access . | . . . . . . . . . . . . . . . . Terminal Hacks 22 | . . . 2 1 . 5 . 4 4 . . 2 . . 4 Record 8 | . . . . . . . . 4 . . . . . . 4 Robot Analysis 1 | . . . . . . 1 . . . . . . . . . Open Door 2 | . . . . . . 2 . . . . . . . . . Emergency Access Points 2 | . . . . . . . . . 2 . . . . . . Terminal Index 3 | . . . 1 . . . . . 1 . . 1 . . . Alert Level 2 | . . . . 1 . 1 . . . . . . . . . Unreport Threat 1 | . . . . . . . . . 1 . . . . . . Hauler Manifests 1 | . . . . . . 1 . . . . . . . . . Zone Layout 2 | . . . 1 . . . . . . . . 1 . . . Fabricator Hacks . | . . . . . . . . . . . . . . . . Repair Station Hacks . | . . . . . . . . . . . . . . . . Recycling Unit Hacks 8 | . . . . . . . 6 . 2 . . . . . . Retrieve Components 8 | . . . . . . . 6 . 2 . . . . . . Scanalyzer 6 | . . . . . . . . . 2 . . 3 1 . . Retrieve Study 6 | . . . . . . . . . 2 . . 3 1 . . Garrison Access Hacks . | . . . . . . . . . . . . . . . . Unauthorized Hacks 33 | . 2 . 4 3 . 5 8 . 8 . . 2 1 . . Terminals 23 | . 2 . 3 3 . 5 3 . 5 . . 2 . . . Botnet 21 | . 1 . 2 3 . 5 3 . 5 . . 2 . . . Operators 2 | . 1 . 1 . . . . . . . . . . . . Fabricators 2 | . . . . . . . . . 1 . . . 1 . . Fabnet 2 | . . . . . . . . . 1 . . . 1 . . Repair Stations . | . . . . . . . . . . . . . . . . Recycling Units 8 | . . . 1 . . . 5 . 2 . . . . . . Recyclers 3 | . . . 1 . . . 1 . 1 . . . . . . Mask 5 | . . . . . . . 4 . 1 . . . . . . Scanalyzers . | . . . . . . . . . . . . . . . . Garrison Access . | . . . . . . . . . . . . . . . . Data Cores Recovered 2 | . . . . . . 1 . . . . . 1 . . . Used 2 | . . . . . . 1 . . . . . 1 . . . Hacking Detections 43 | . 1 . 3 2 5 5 9 . 8 . . 3 3 . 4 Full Trace Events . | . . . . . . . . . . . . . . . . Feedback Events . | . . . . . . . . . . . . . . . . Feedback Blocked . | . . . . . . . . . . . . . . . . Robot Schematics Acquired 1 | . . . . . . . . . . . . . . . 1 Robots Built . | . . . . . . . . . . . . . . . . Authchips . | . . . . . . . . . . . . . . . . Time . | . . . . . . . . . . . . . . . . Total Robot Build Rating . | . . . . . . . . . . . . . . . . Part Schematics Acquired . | . . . . . . . . . . . . . . . . Parts Built . | . . . . . . . . . . . . . . . . Authchips . | . . . . . . . . . . . . . . . . Time . | . . . . . . . . . . . . . . . . Total Part Build Rating . | . . . . . . . . . . . . . . . . Part Studies Acquired 6 | . . . . . . . . . 2 . . 3 1 . . Parts Repaired . | . . . . . . . . . . . . . . . . Time . | . . . . . . . . . . . . . . . . Parts Recycled . | . . . . . . . . . . . . . . . . Recycled Matter . | . . . . . . . . . . . . . . . . Retrieved Matter . | . . . . . . . . . . . . . . . . Retrieved Components 8 | . . . . . . . 8 . . . . . . . . Parts Scanalyzed . | . . . . . . . . . . . . . . . . Part Schematics Acquired . | . . . . . . . . . . . . . . . . Parts Damaged . | . . . . . . . . . . . . . . . . Bothacking | -11 -10 -10 -9 -8 -7 -7 -7 -7 -5 -5 -5 -4 -3 -2 -2 ------------ Run | Yrd Mat Min Mat Mat Fac Sto Rec Scr Fac Upp Upp Fac Res Res Qua Used RIF Installer . | . . . . . . . . . . . . . . . . Robots Hacked . | . . . . . . . . . . . . . . . . Non-combat . | . . . . . . . . . . . . . . . . Combat . | . . . . . . . . . . . . . . . . Robot Hacks Applied . | . . . . . . . . . . . . . . . . Relay Couplers Released 3 | . . . . . . . . . . . . 2 1 . . Machine Destruction 3 | . . . . . . . . . . . . 2 1 . . Fabnet Peak Effective % 3 | . . . . . . . . . . . . 3 1 3 3 Robots Rewired . | . . . . . . . . . . . . . . . . Allies Hacked . | . . . . . . . . . . . . . . . . Hacks Repelled . | . . . . . . . . . . . . . . . . Allies | -11 -10 -10 -9 -8 -7 -7 -7 -7 -5 -5 -5 -4 -3 -2 -2 -------- Run | Yrd Mat Min Mat Mat Fac Sto Rec Scr Fac Upp Upp Fac Res Res Qua Total Allies 2 | . . 2 . . . . . . . . . . . . . Largest Group 2 | . . 2 1 . . . . . . . . . . . . Highest-Rated Group 54 | . . 54 31 . . . . . . . . . . . . Highest-Rated Ally 31 | . . 31 31 . . . . . . . . . . . . Total Orders . | . . . . . . . . . . . . . . . . Ally Attacks 6 | . . . 6 . . . . . . . . . . . . Total Damage 105 | . . . 105 . . . . . . . . . . . . Kills 3 | . . . 3 . . . . . . . . . . . . Allies Corrupted . | . . . . . . . . . . . . . . . . Allies Melted . | . . . . . . . . . . . . . . . . Intel | -11 -10 -10 -9 -8 -7 -7 -7 -7 -5 -5 -5 -4 -3 -2 -2 ------- Run | Yrd Mat Min Mat Mat Fac Sto Rec Scr Fac Upp Upp Fac Res Res Qua Active Infowar (turns) 2096 | . . . . . . 74 140 49 1430 . . 402 . 1 . Sensors 402 | . . . . . . . . . . . . 402 . . . Terrain 1430 | . . . . . . . . . 1430 . . . . . . T.N.C. 263 | . . . . . . 74 140 49 . . . . . . . ECM 13 | . . . . . . . . . 12 . . . . 1 . Robot Analysis Total 1 | . . . . . . 1 . . . . . . . . . Derelict Logs Recovered 1 | . . 1 . . . . . . . . . . . . . Drone Launches . | . . . . . . . . . . . . . . . . Drone Recoveries . | . . . . . . . . . . . . . . . . Exploration | -11 -10 -10 -9 -8 -7 -7 -7 -7 -5 -5 -5 -4 -3 -2 -2 ------------- Run | Yrd Mat Min Mat Mat Fac Sto Rec Scr Fac Upp Upp Fac Res Res Qua Turns Passed 6063 | 64 71 276 163 769 212 121 140 1017 1545 191 18 825 249 56 346 Spaces Moved 6528 | 37 45 125 112 365 482 226 400 1716 1192 314 33 654 346 102 379 Core 1662 | 9 . . 1 . . . . . 150 302 32 377 343 102 346 Treads 854 | 28 45 125 52 327 . . . . . . . 277 . . . Legs 1547 | . . . . . . . . 508 1039 . . . . . . Wheels . | . . . . . . . . . . . . . . . . Hover 22 | . . . . . . . . . 3 12 . . . . 7 Flight 2443 | . . . 59 38 482 226 400 1208 . . 1 . 3 . 26 Fastest Speed 26 | 50 160 160 34 30 26 26 35 32 50 50 50 50 50 50 50 Average Speed 74 | 148 160 160 93 136 26 28 35 58 111 52 51 94 50 50 66 Slowest Speed 200 | 200 160 160 160 155 26 35 35 120 200 120 95 165 100 50 200 Overloaded Moves . | . . . . . . . . . . . . . . . . Propulsion Burnouts . | . . . . . . . . . . . . . . . . Robots Hopped 7 | . . . . . 5 . 1 . . . . . . . 1 Potential Cave-ins 8 | . . . . . . . . . . 3 . 5 . . . Cave-ins Triggered . | . . . . . . . . . . . . . . . . Teleports 3 | . . . . . . . . . . . . . . . 3 Exploration Rate (%) 32 | 3 10 46 16 34 20 49 86 89 31 52 8 21 14 4 36 Regions Visited 15 Branch Regions 7 Pre-discovered Areas . | . . . . . . . . . . . . . . . . Known Exits Taken 10 | . . . . . 1 1 1 1 1 1 1 1 1 1 . Unknown Exits Taken 5 | 1 1 1 1 1 . . . . . . . . . . . Scrap Searched 9 | . . . . . . . . 5 . 3 1 . . . . Spaces Dug 10 | . . . . . . . . . . . . 8 . . 2 Terrain Destroyed 94 | . . 5 . 42 . 5 . . . 30 . 8 . . 4 Melee 8 | . . . . . . . . . . . . 8 . . . Projectile 20 | . . . . 16 . . . . . . . . . . 4 AOE 66 | . . 5 . 26 . 5 . . . 30 . . . . . Terrain Rammed . | . . . . . . . . . . . . . . . . Walls Destroyed . | . . . . . . . . . . . . . . . . Machines Disabled . | . . . . . . . . . . . . . . . . Actions | -11 -10 -10 -9 -8 -7 -7 -7 -7 -5 -5 -5 -4 -3 -2 -2 --------- Run | Yrd Mat Min Mat Mat Fac Sto Rec Scr Fac Upp Upp Fac Res Res Qua Total 7199 | 43 44 157 143 496 529 253 398 1732 1355 331 33 756 381 105 443 Wait 90 | . . 1 5 7 3 . . . 53 5 . 7 1 . 8 Move 6500 | 36 44 124 111 364 472 225 397 1715 1191 313 32 653 345 101 377 Hop 6 | . . . . . 4 . 1 . . . . . . . 1 Pick Up 46 | 1 . 4 7 8 4 1 . 7 7 . . 3 2 . 2 Fast Attach 110 | 6 . . 1 12 5 1 . 6 19 3 1 28 11 3 14 Attach 34 | . . 1 2 5 6 2 . . 7 1 . 2 . . 8 Detach 12 | . . . . 3 1 2 . . . . . 1 . . 5 Swap 19 | . . 2 . 11 1 . . . 3 . . 2 . . . Drop 61 | . . . 1 15 12 1 . 4 14 1 . 5 2 1 5 Fire 198 | . . 25 16 70 21 19 . . 1 7 . 26 . . 13 Melee 116 | . . . . . . 2 . . 60 . . 28 20 . 6 Ram 2 | . . . . . . . . . . . . . . . 2 Kick . | . . . . . . . . . . . . . . . . Crush 1 | . . . . 1 . . . . . . . . . . . Escape Stasis 3 | . . . . . . . . . . . . 1 . . 2 Rewire 1 | . . . . . . . . . . 1 . . . . . Trap . | . . . . . . . . . . . . . . . . Miscellaneous . | . . . . . . . . . . . . . . . . Route ------- -11/Scrapyard -10/Materials -10/Mines -9/Materials (discovered 2 exits: *Mat / Min) -8/Materials -7/Factory -7/Storage -7/Recycling (discovered 2 exits: *Fac / *Scr) -7/Scraptown -5/Factory -5/Upper Caves -5/Upper Caves -4/Factory -3/Research -2/Research -2/Quarantine History --------- Turn | Location | Event 8 | -11/Scrapyard | Discovered new exit (range 16) 65 | -11/Scrapyard | Entered Materials 66 | -10/Materials | Met a group of wandering Federalists 99 | -10/Materials | Discovered new exit (range 5) 136 | -10/Materials | Entered Mines 228 | -10/Mines | Learned location of 1 exit from Materials 306 | -10/Mines | Build established: Mutant 388 | -10/Mines | Discovered new exit (range 11) 412 | -10/Mines | Entered Materials 412 | -9/Materials | Accompanied by 1 ally 412 | -9/Materials | Evolved 2 slots: Utility x1, Weapon x1 413 | -9/Materials | Identified exit to Mines 417 | -9/Materials | Led the pair of lost Derelicts to an unsafe place 547 | -9/Materials | Discovered new exit (range 16) 563 | -9/Materials | Lost 4 parts (1p2n1w) 575 | -9/Materials | Entered another Materials area 575 | -8/Materials | Evolved 2 slots: Propulsion x1, Utility x1 1045 | -8/Materials | Destroyed 8 combat bots 1074 | -8/Materials | Core integrity fell below 50% 1336 | -8/Materials | Discovered new exit (range 5) 1344 | -8/Materials | Entered Factory 1344 | -7/Factory | Evolved 2 slots: Propulsion x1, Utility x1 1549 | -7/Factory | Discovered new exit (range 11) 1555 | -7/Factory | Identified exit to Storage 1556 | -7/Factory | Entered Storage 1676 | -7/Storage | Used back door to open Recycling access 1676 | -7/Storage | Discovered new exit (range 4) 1677 | -7/Storage | Identified exit to Recycling 1677 | -7/Storage | Entered Recycling 1705 | -7/Recycling | Lost 4 parts (1p3n) 1735 | -7/Recycling | Discovered new exit (range 8) 1737 | -7/Recycling | Identified exit to Factory 1809 | -7/Recycling | Scanned before Scraplab entrance 1814 | -7/Recycling | Entered Scraplab 1817 | -7/Recycling | Discovered new exit (range 2) 1817 | -7/Recycling | Identified exit to Scraptown 1817 | -7/Recycling | Entered Scraptown 1901 | -7/Scraptown | Discovered exit to Factory (range 13) 1913 | -7/Scraptown | Visited CR-KLE's Repair Center 1919 | -7/Scraptown | Visited Assassins FH 1927 | -7/Scraptown | Visited Spacefarers 1990 | -7/Scraptown | Visited Comm Corps 2005 | -7/Scraptown | Visited Shadow of the Wyrm 2022 | -7/Scraptown | Visited Fellowship of the Rings 2024 | -7/Scraptown | Visited Cave Peace 2038 | -7/Scraptown | Visited UFD Registry 2038 | -7/Scraptown | Registered with UFD as "Nanoshaft" 2050 | -7/Scraptown | Visited Derelict Rescue Squad 2058 | -7/Scraptown | Visited Supply Room 2070 | -7/Scraptown | Visited Abandonware Association 2074 | -7/Scraptown | Learned abandonware demo "REBOOT5.EXE" 2074 | -7/Scraptown | Learned abandonware demo "KABOOM.EXE" 2085 | -7/Scraptown | Visited Curators Association 2090 | -7/Scraptown | Visited A0-MCA Data Center 2092 | -7/Scraptown | Given a B+ rating by A0-MCA 2096 | -7/Scraptown | Found A0-MCA's Component Scanner 2118 | -7/Scraptown | Visited Scrap Suit Storage 2123 | -7/Scraptown | Visited Scrapoid Pod Storage 2159 | -7/Scraptown | Visited Scrapoid Research Area 2164 | -7/Scraptown | Visited Observation Area 2173 | -7/Scraptown | Build established: Sprinter 2528 | -7/Scraptown | Build established: Mutant 2834 | -7/Scraptown | Entered Factory 2834 | -5/Factory | Evolved 4 slots: Propulsion x1, Utility x3 3146 | -5/Factory | Build established: Gladiator 3925 | -5/Factory | Central database locked down 4188 | -5/Factory | Build established: Hacker-Gladiator 4283 | -5/Factory | Core integrity fell below 50% 4311 | -5/Factory | Lost 13 parts (1p6n3u3w) 4368 | -5/Factory | Discovered new exit (range 12) 4374 | -5/Factory | Identified exit to Upper Caves 4379 | -5/Factory | Entered Upper Caves 4469 | -5/Upper Caves | Encountered a Warlord checkpoint 4478 | -5/Upper Caves | Attracted the attention of an 0b10 outpost 4549 | -5/Upper Caves | Lost 4 parts (2n1u1w) 4563 | -5/Upper Caves | Discovered new exit (range 14) 4570 | -5/Upper Caves | Identified exit to Upper Caves 4570 | -5/Upper Caves | Entered another Upper Caves area 4572 | -5/Upper Caves | Build established: Hacker-Mutant 4578 | -5/Upper Caves | Discovered new exit (range 4) 4585 | -5/Upper Caves | Attracted the attention of an 0b10 checkpoint 4588 | -5/Upper Caves | Identified exit to Factory 4588 | -5/Upper Caves | Entered Factory 4588 | -4/Factory | Evolved 2 slots: Utility x2 4700 | -4/Factory | Lost 4 parts (2n2u) 5176 | -4/Factory | Lost 7 parts (1p1n3u2w) 5233 | -4/Factory | Core integrity fell below 50% 5310 | -4/Factory | Lost 6 parts (3n2u1w) 5407 | -4/Factory | Discovered new exit (range 14) 5413 | -4/Factory | Identified exit to Research 5413 | -4/Factory | Entered Research 5413 | -3/Research | Evolved 2 slots: Power x1, Utility x1 5434 | -3/Research | Lost 4 parts (3n1u) 5518 | -3/Research | Spotted B-86 Titan 5564 | -3/Research | Found Exp. Target Analyzer 5566 | -3/Research | Found Exp. Target Analyzer 5568 | -3/Research | Found Exp. Target Analyzer 5573 | -3/Research | Lost 3 parts (2n1u) 5659 | -3/Research | Discovered new exit (range 5) 5662 | -3/Research | Identified exit to Research 5662 | -3/Research | Entered another Research area 5662 | -2/Research | Evolved 2 slots: Utility x2 5667 | -2/Research | Lost 4 parts (3n1w) 5712 | -2/Research | Discovered new exit (range 8) 5716 | -2/Research | Identified exit to Quarantine 5718 | -2/Research | Entered Quarantine 5733 | -2/Quarantine | Found Alien Artifact 5733 | -2/Quarantine | Identified Transdimensional Reconstructor 5733 | -2/Quarantine | Warped through subspace 5743 | -2/Quarantine | Found Alien Artifact 5743 | -2/Quarantine | Identified Subatomic Replicator 5774 | -2/Quarantine | Found Alien Artifact 5774 | -2/Quarantine | Identified Dimensional Node Initializer 5774 | -2/Quarantine | Initialized slip node 5785 | -2/Quarantine | Found Alien Artifact 5785 | -2/Quarantine | Identified Hpw. Transdimensional Reconstructor 5785 | -2/Quarantine | Warped through subspace to slip node 5791 | -2/Quarantine | Found Dimensional Node Initializer 5806 | -2/Quarantine | Build established: Mutant 5821 | -2/Quarantine | Found Transdimensional Reconstructor 5928 | -2/Quarantine | Found Alien Artifact 5928 | -2/Quarantine | Identified Core Reset Matrix 5928 | -2/Quarantine | Used Core Reset Matrix 5932 | -2/Quarantine | Detected hypermatrix surge 5932 | -2/Quarantine | Sensed 8 artifacts in vicinity 5949 | -2/Quarantine | Scanned by Researcher 5954 | -2/Quarantine | Found Sigix Broadsword 5969 | -2/Quarantine | Warped through subspace to slip node 6004 | -2/Quarantine | System corruption reached 10% 6028 | -2/Quarantine | Core integrity fell below 50% 6051 | -2/Quarantine | Lost 3 parts (2n1w) 6059 | -2/Quarantine | Core integrity fell below 20% 6064 | -2/Quarantine | Destroyed by X-87 Electro with Compact HERF Cannon Last Messages --------------- Slug penetrates Wall. Slug penetrates Suspension Chamber. Adv. Melee Analysis Suite destroyed. Slug penetrates Suspension Chamber. Adv. Melee Analysis Suite destroyed. Slammed into S-43 Plague. M-36 Artificer fits Unknown Power Core on X-87 Electro. Slug penetrates Suspension Chamber. Slammed into S-43 Plague. Penetrated by Slug. Slug penetrates Suspension Chamber. Penetrated by Slug. Hvy. Gauss Cannon destroyed. Slug penetrates S-43 Plague. Penetrated by Slug. M-36 Artificer repairs X-87 Electro Unknown Leg. Slug penetrates Suspension Chamber. Penetrated by Slug. Slug penetrates Suspension Chamber. Map ----- +----------------------------------------------------+ | ?????????????????????????????????????????????????? | | ?????????????????????????????????????????????????? | | ?????????????????????????????????????????????????? | | ??###????????????????????????????????????????????? | | ?? ????????????????????????????????????????????? | | ????????????????????????????????????????????? | | ? "???????????????????????????????????????????? | | T?????????????+?????????????????????????????? | | """ "??????????? ??????????????????????????????? | | " " "?????????? ????????????????????????????????? | | "" ########## ?????######??????????????????????? | | ?????? #??????????????????????? | | " ??????? #??????????????????????? | | % ????????? #??????????????????????? | | ] % ?????????? #??????????????????????? | | ##"+"######?????# #??????????????????????? | | # #?????# #??????????????????????? | | # #?????# ##??? "????????????????? | | " + #?????# u+?"" ""???????????????? | | # " " """ #?????# m # " " " ????????????? | | # """ """ ####### / ???????????????? | | # """ """ + m #??????????????????????? | | ""### ########/#h#####??????????????????? | | T""#?# ] ## hh #??????????????????? | | "" #?############ x #??????????????????? | | ####????????????# @ s #??????????????????? | | ????????????????# """""""""s #??????????????????? | | ????????????????# " "" ""!"s #??????????????????? | | ????????????????# """""""""s #??????????????????? | | ????????????????# """"""""" #??????????????????? | | ????????????????# """"""" #??????????????????? | | ????????????????# #??????????????????? | | ????????????????# #??????????????????? | | ????????????????# #??????????????????? | | ????????????????###############??????????????????? | | | | | | | | | | | | | | | | | | | | | | | | | | | | | | | +----------------------------------------------------+ Best States ------------- Heat Dissipation 62 Energy Generation 24 Energy Capacity 315 Matter Stores 300 Matter Capacity 300 Sight Range 16 Robot Scan Range 16 Terrain Scan Range 20 Terrain Scan Density 310 ECM Strength 2 Power Amplification 20 Armor Coverage 300 Resistance: TH 10 Melee Speed Boost 20 Evasion (%) 72 Targeting Accuracy 14 Melee Accuracy 32 Target Analysis 15 Armor Integrity Analysis 30 Recoil Reduction 5 Particle Charging 25 Salvage Targeting 3 Offensive Hacking 30 Defensive Hacking 22 Item Schematics ----------------- None Robot Schematics ------------------ A-15 Conveyor | -2/Quarantine | Archive Fabricated ------------ Nothing Repaired ---------- Nothing Studied --------- None Alien Tech Used ----------------- Transdimensional Reconstructor Subatomic Replicator Dimensional Node Initializer High-powered Transdimensional Reconstructor Core Reset Matrix Sigix Broadsword Achievements -------------- None Challenges ------------ None Game ------ Seed RefineryModifiedFlail Manual? 0 Play Time 01:19:00 Cumulative 100.9 hours Start 2025.10.28 @ 12:37:56 End 2025.10.28 @ 13:53:59 Sessions 1 Manual Loads 0 Difficulty Rogue Special Mode None Game No. 118 Rogue 118 Adventurer 0 Explorer 0 Win Type - Total 1 Types 1/0/0/0/0/0/0/0/0/0 Lore% 72 Gallery% 56 Achievement% 37 Wizard Run 0 Options --------- Layout 1 ASCII 0 Keyboard 0 Movement Mouse Keybinds 0 Fullscreen 2 Font 24/Smallcaps Map View 50x35 Zoom Use 0% Tactical HUD 0 Map Filters NONE Filters NONE Steam 1 RUN: 4251b861-2522-4a49-926c-3af6f92ca9d2